fUST/lending_fUST_20250121
["ID","MTS","AMOUNT","RATE_DAILY","PERIOD"]
[349753210,1737413463408,-500.0,0.00022328,3]
[349753211,1737413463417,-500.0,0.00022328,3]
[349753214,1737413463427,-500.0,0.00022328,3]
[349753216,1737413463437,-500.0,0.00022328,3]
[349753218,1737413463446,-500.0,0.00022328,3]
[349753219,1737413463455,-500.0,0.00022328,3]
[349753221,1737413463464,-500.0,0.00022328,3]
[349753223,1737413463474,-500.0,0.00022328,3]
[349753226,1737413463484,-500.0,0.00022328,3]
[349753228,1737413463493,-500.0,0.00022328,3]
[349753229,1737413463503,-500.0,0.00022328,3]
[349753231,1737413463513,-500.0,0.00022328,3]
[349753234,1737413463522,-342.81076487,0.00022328,3]
[349753236,1737413463532,-500.0,0.00022328,3]
[349753237,1737413463542,-500.0,0.00022328,3]
[349753239,1737413463551,-500.0,0.00022328,3]
[349753241,1737413463561,-500.0,0.00022328,3]
[349753243,1737413463571,-500.0,0.00022328,3]
[349753245,1737413463580,-501.25977083,0.00022328,3]
[349753247,1737413463590,-500.0,0.00022328,3]
[349753249,1737413463599,-500.0,0.00022328,3]
[349753251,1737413463609,-500.0,0.00022328,3]
[349753253,1737413463618,-667.99,0.00022328,3]
[349753255,1737413463628,-500.0,0.00022328,3]
[349753257,1737413463637,-500.0,0.00022328,3]
[349753259,1737413463647,-500.0,0.00022328,3]
[349753261,1737413463656,-500.0,0.00022328,3]
[349753263,1737413463666,-500.0,0.00022328,3]
[349753265,1737413463675,-500.0,0.00022328,3]
[349753267,1737413463685,-500.0,0.00022328,3]
[349753269,1737413463694,-500.0,0.00022328,3]
[349753271,1737413463704,-500.0,0.00022328,3]
[349753273,1737413463714,-500.0,0.00022328,3]
[349753275,1737413463724,-832.01,0.00022328,3]
[349753277,1737413463735,-500.0,0.00022328,3]
[349753279,1737413463745,-500.0,0.00022328,3]
[349753281,1737413463756,-602.88552883,0.00022328,3]
[349753283,1737413463765,-500.0,0.00022328,3]
[349753285,1737413463775,-500.0,0.00022328,3]
[349753287,1737413463784,-500.0,0.00022328,3]
[349753289,1737413463794,-500.0,0.00022328,3]
[349753291,1737413463803,-500.0,0.00022328,3]
[349753293,1737413463813,-500.0,0.00022328,3]
[349753295,1737413463822,-500.0,0.00022328,3]
[349753297,1737413463833,-500.0,0.00022328,3]
[349753299,1737413463843,-500.0,0.00022328,3]
[349753301,1737413463852,-500.0,0.00022328,3]
[349753303,1737413463862,-500.0,0.00022328,3]
[349753305,1737413463871,-500.0,0.00022328,3]
[349753306,1737413463880,-500.0,0.00022328,3]
[349753307,1737413463890,-516.67740204,0.00022328,3]
[349753308,1737413463899,-500.0,0.00022328,3]
[349753309,1737413463909,-1033.27,0.00022328,3]
[349753310,1737413463918,-500.0,0.00022328,3]
[349753311,1737413463928,-500.0,0.00022328,3]
[349753312,1737413463938,-500.0,0.00022328,3]
[349753313,1737413463948,-500.0,0.00022328,3]
[349753314,1737413463959,-500.0,0.00022328,3]
[349753315,1737413463970,-500.0,0.00022328,3]
[349753316,1737413463981,-500.0,0.00022328,3]
[349753317,1737413463991,-599.61,0.00022328,3]
[349753318,1737413464001,-500.0,0.00022328,3]
[349753320,1737413464010,-500.0,0.00022328,3]
[349753322,1737413464020,-1053.52,0.00022328,3]
[349753324,1737413464030,-500.0,0.00022328,3]
[349753325,1737413464039,-501.29694341,0.00022328,3]
[349753327,1737413464048,-500.0,0.00022328,3]
[349753329,1737413464057,-500.0,0.00022328,3]
[349753331,1737413464067,-500.0,0.00022328,3]
[349753333,1737413464076,-500.0,0.00022328,3]
[349753335,1737413464085,-500.0,0.00022328,3]
[349753337,1737413464095,-581.14,0.00022328,3]
[349753340,1737413464113,-1057.52,0.00022328,3]
[349753341,1737413464123,-500.0,0.00022328,3]
[349753343,1737413464134,-500.0,0.00022328,3]
[349753346,1737413464153,-500.0,0.00022328,3]
[349753347,1737413464163,-500.0,0.00022328,3]
[349753350,1737413464174,-500.0,0.00022328,3]
[349753352,1737413464188,-500.0,0.00022328,3]
[349753354,1737413464198,-500.0,0.00022328,3]
[349753356,1737413464207,-500.0,0.00022328,3]
[349753358,1737413464218,-500.0,0.00022328,3]
[349753360,1737413464230,-500.0,0.00022328,3]
[349753362,1737413464240,-500.0,0.00022328,3]
[349753364,1737413464250,-500.0,0.00022328,3]
[349753365,1737413464260,-500.0,0.00022328,3]
[349753368,1737413464270,-1354.9,0.00022328,3]
[349753369,1737413464279,-500.0,0.00022328,3]
[349753371,1737413464289,-500.0,0.00022328,3]
[349753373,1737413464300,-500.0,0.00022328,3]
[349753375,1737413464310,-500.0,0.00022328,3]
[349753377,1737413464319,-1123.49,0.00022328,3]
[349753379,1737413464329,-776.68,0.00022328,3]
[349753381,1737413464339,-500.0,0.00022328,3]
[349753383,1737413464349,-500.0,0.00022328,3]
[349753385,1737413464363,-613.72,0.00022328,3]
[349753387,1737413464373,-500.0,0.00022328,3]
[349753389,1737413464383,-500.0,0.00022328,3]
[349753391,1737413464393,-500.0,0.00022328,3]
[349753393,1737413464403,-500.0,0.00022328,3]
[349753395,1737413464413,-500.0,0.00022328,3]
[349753397,1737413464423,-500.0,0.00022328,3]
[349753399,1737413464433,-500.0,0.00022328,3]
[349753401,1737413464443,-500.0,0.00022328,3]
[349753403,1737413464453,-500.0,0.00022328,3]
[349753405,1737413464462,-1055.7,0.00022328,3]
[349753407,1737413464471,-500.0,0.00022328,3]
[349753409,1737413464481,-500.0,0.00022328,3]
[349753411,1737413464490,-500.0,0.00022328,3]
[349753413,1737413464500,-500.0,0.00022328,3]
[349753415,1737413464510,-500.0,0.00022328,3]
[349753417,1737413464520,-500.0,0.00022328,3]
[349753419,1737413464530,-500.0,0.00022328,3]
[349753434,1737413464665,-500.0,0.00022328,3]
[349753436,1737413464675,-500.0,0.00022328,3]
[349753438,1737413464686,-406.95313387,0.00022328,3]
[349753441,1737413464696,-500.0,0.00022328,3]
[349753443,1737413464705,-500.0,0.00022328,3]
[349753445,1737413464715,-500.0,0.00022328,3]
[349753447,1737413464724,-684.9,0.00022328,3]
[349753448,1737413464733,-500.0,0.00022328,3]
[349753451,1737413464742,-500.0,0.00022328,3]
[349753453,1737413464752,-818.72,0.00022328,3]
[349753454,1737413464762,-500.0,0.00022328,3]
[349753457,1737413464771,-500.0,0.00022328,3]
[349753458,1737413464780,-500.0,0.00022328,3]
[349753461,1737413464790,-500.0,0.00022328,3]
[349753463,1737413464800,-500.0,0.00022328,3]
[349753465,1737413464810,-500.0,0.00022328,3]
[349753467,1737413464820,-500.0,0.00022328,3]
[349753469,1737413464829,-500.0,0.00022328,3]
[349753471,1737413464839,-564.43,0.00022328,3]
[349753473,1737413464849,-500.0,0.00022328,3]
[349753475,1737413464859,-500.0,0.00022328,3]
[349753477,1737413464869,-500.0,0.00022328,3]
[349753479,1737413464878,-500.0,0.00022328,3]
[349753481,1737413464888,-500.0,0.00022328,3]
[349753483,1737413464897,-848.75,0.00022328,3]
[349753485,1737413464907,-500.0,0.00022328,3]
[349753487,1737413464917,-500.0,0.00022328,3]
[349753489,1737413464927,-601.55248308,0.00022328,3]
[349753491,1737413464937,-807.56,0.00022328,3]
[349753493,1737413464947,-500.0,0.00022328,2]
[349753495,1737413464957,-500.0,0.00022328,3]
[349753497,1737413464966,-500.0,0.00022328,3]
[349753499,1737413464976,-1731.23,0.00022328,3]
[349753501,1737413464985,-500.0,0.00022328,3]
[349753503,1737413464995,-610.07,0.00022328,3]
[349753505,1737413465004,-500.0,0.00022328,3]
[349753507,1737413465014,-500.0,0.00022328,3]
[349753509,1737413465024,-500.0,0.00022328,3]
[349753511,1737413465034,-500.0,0.00022328,3]
[349753513,1737413465043,-1348.5,0.00022328,3]
[349753515,1737413465053,-500.0,0.00022328,3]
[349753517,1737413465062,-539.87425114,0.00022328,3]
[349753519,1737413465071,-500.0,0.00022328,3]
[349753521,1737413465081,-500.0,0.00022328,3]
[349753523,1737413465090,-500.0,0.00022328,3]
[349753525,1737413465100,-509.13,0.00022328,3]
[349753527,1737413465110,-500.0,0.00022328,3]
[349753529,1737413465119,-500.0,0.00022328,3]
[349753531,1737413465129,-774.48,0.00022328,3]
[349753533,1737413465139,-500.0,0.00022328,3]
[349753535,1737413465148,-4312.58,0.00022328,3]
[349753537,1737413465158,-500.0,0.00022328,3]
[349753539,1737413465167,-502.29987622,0.00022328,3]
[349753541,1737413465178,-500.0,0.00022328,3]
[349753543,1737413465193,-500.0,0.00022328,3]
[349753545,1737413465203,-500.0,0.00022328,3]
[349753547,1737413465212,-500.0,0.00022328,3]
[349753549,1737413465223,-500.0,0.00022328,3]
[349753551,1737413465232,-500.0,0.00022328,3]
[349753552,1737413465242,-500.0,0.00022328,3]
[349753555,1737413465252,-753.91,0.00022328,3]
[349753557,1737413465265,-500.0,0.00022328,3]
[349753559,1737413465275,-500.0,0.00022328,3]
[349753561,1737413465289,-712.38,0.00022328,3]
[349753563,1737413465298,-500.0,0.00022328,3]
[349753565,1737413465309,-500.0,0.00022328,3]
[349753567,1737413465321,-500.0,0.00022328,3]
[349753569,1737413465331,-500.0,0.00022328,3]
[349753571,1737413465341,-500.0,0.00022328,3]
[349753573,1737413465351,-500.0,0.00022328,3]
[349753575,1737413465361,-2297.2,0.00022328,3]
[349753577,1737413465371,-500.0,0.00022328,3]
[349753579,1737413465381,-500.0,0.00022328,3]
[349753581,1737413465391,-258.99389627,0.00022328,3]
[349753583,1737413465401,-500.0,0.00022328,3]
[349753585,1737413465411,-500.0,0.00022328,3]
[349753587,1737413465420,-797.52,0.00022328,3]
[349753589,1737413465429,-787.58,0.00022328,3]
[349753591,1737413465439,-5647.04,0.00022328,3]
[349753593,1737413465448,-500.0,0.00022328,3]
[349753595,1737413465458,-277.99055866,0.00022328,3]
[349753597,1737413465468,-500.0,0.00022328,3]
[349753599,1737413465477,-500.0,0.00022328,3]
[349753601,1737413465488,-500.0,0.00022328,3]
[349753603,1737413465498,-500.0,0.00022328,3]
[349753605,1737413465508,-3185.35,0.00022328,3]
[349753608,1737413465517,-1380.32,0.00022328,3]
[349753610,1737413465527,-500.0,0.00022328,3]
[349753612,1737413465538,-500.0,0.00022328,3]
[349753614,1737413465547,-500.0,0.00022328,3]
[349753616,1737413465557,-500.0,0.00022328,3]
[349753617,1737413465567,-500.0,0.00022328,3]
[349753620,1737413465577,-500.0,0.00022328,3]
[349753622,1737413465587,-500.0,0.00022328,3]
[349753623,1737413465596,-4174.35,0.00022328,3]
[349753625,1737413465605,-500.0,0.00022328,3]
[349753627,1737413465615,-500.0,0.00022328,3]
[349753630,1737413465624,-1576.35,0.00022328,3]
[349753632,1737413465633,-12668.36,0.00022328,3]
[349753634,1737413465643,-500.0,0.00022328,3]
[349753636,1737413465652,-500.0,0.00022328,2]
[349753638,1737413465661,-500.0,0.00022328,3]
[349753640,1737413465672,-500.0,0.00022328,3]
[349753642,1737413465681,-500.0,0.00022328,3]
[349753644,1737413465691,-500.0,0.00022328,3]
[349753646,1737413465700,-500.0,0.00022328,3]
[349753648,1737413465709,-2268.32,0.00022328,3]
[349753650,1737413465722,-500.0,0.00022328,3]
[349753653,1737413465737,-500.0,0.00022328,3]
[349753655,1737413465753,-1307.23,0.00022328,3]
[349753658,1737413465765,-1849.58,0.00022328,3]
[349753660,1737413465778,-500.0,0.00022328,3]
[349753662,1737413465791,-500.0,0.00022328,3]
[349753665,1737413465805,-731.38,0.00022328,3]
[349753667,1737413465820,-500.0,0.00022328,3]
[349753670,1737413465835,-500.0,0.00022328,3]
[349753673,1737413465850,-500.0,0.00022328,3]
[349753675,1737413465865,-500.0,0.00022328,3]
[349753677,1737413465877,-500.0,0.00022328,3]
[349753680,1737413465892,-41284.99,0.00022328,3]
[349753682,1737413465906,-2372.64,0.00022328,2]
[349753685,1737413465919,-287.99434974,0.00022328,3]
[349753687,1737413465933,-500.0,0.00022328,3]
[349753689,1737413465944,-500.0,0.00022328,3]
[349753691,1737413465956,-500.0,0.00022328,3]
[349753694,1737413465969,-500.0,0.00022328,3]
[349753696,1737413465983,-500.0,0.00022328,3]
[349753699,1737413465997,-500.0,0.00022328,3]
[349753701,1737413466012,-500.0,0.00022328,3]
[349753704,1737413466027,-500.0,0.00022328,3]
[349753707,1737413466042,-500.0,0.00022328,3]
[349753709,1737413466053,-5906.85,0.00022328,3]
[349753711,1737413466064,-1835.04,0.00022328,3]
[349753713,1737413466076,-500.0,0.00022328,3]
[349753716,1737413466092,-1448.6,0.00022328,3]
[349753718,1737413466106,-500.0,0.00022328,3]
[349753721,1737413466117,-500.0,0.00022328,3]
[349753723,1737413466129,-3184.72,0.00022328,3]
[349753725,1737413466143,-500.0,0.00022328,3]
[349753728,1737413466156,-500.0,0.00022328,3]
[349753730,1737413466167,-1820.17,0.00022328,3]
[349753732,1737413466182,-12675.4,0.00022328,3]
[349753734,1737413466197,-500.0,0.00022328,3]
[349753737,1737413466209,-501.71009327,0.00022328,3]
[349753739,1737413466223,-750.0,0.00022328,3]
[349753741,1737413466235,-500.0,0.00022328,3]
[349753743,1737413466246,-563.14571511,0.00022328,3]
[349753746,1737413466259,-500.0,0.00022328,3]
[349753748,1737413466273,-500.0,0.00022328,3]
[349753750,1737413466284,-1325.95,0.00022328,3]
[349753752,1737413466296,-500.0,0.00022328,3]
[349753755,1737413466308,-1792.28,0.00022328,3]
[349753757,1737413466320,-231.67979924,0.00022328,3]
[349753759,1737413466331,-500.0,0.00022328,3]
[349753761,1737413466343,-500.0,0.00022328,3]
[349753764,1737413466354,-500.0,0.00022328,3]
[349753766,1737413466366,-928.03,0.00022328,3]
[349753768,1737413466377,-500.0,0.00022328,3]
[349753770,1737413466389,-500.0,0.00022328,3]
[349753772,1737413466401,-500.0,0.00022328,3]
[349753775,1737413466412,-865.84,0.00022328,3]
[349753777,1737413466424,-500.0,0.00022328,3]
[349753779,1737413466435,-500.0,0.00022328,3]
[349753781,1737413466447,-500.0,0.00022328,3]
[349753783,1737413466458,-500.0,0.00022328,3]
[349753786,1737413466471,-919.94,0.00022328,3]
[349753788,1737413466482,-1437.39,0.00022328,3]
[349753790,1737413466495,-500.0,0.00022328,3]
[349753793,1737413466507,-500.0,0.00022328,3]
[349753795,1737413466519,-500.0,0.00022328,3]
[349753797,1737413466531,-500.0,0.00022328,3]
[349753799,1737413466543,-500.0,0.00022328,3]
[349753800,1737413466553,-500.0,0.00022328,3]
[349753801,1737413466564,-500.0,0.00022328,3]
[349753802,1737413466576,-500.0,0.00022328,3]
[349753803,1737413466587,-500.0,0.00022328,3]
[349753804,1737413466599,-11616.42,0.00022328,3]
[349753805,1737413466611,-694.21,0.00022328,3]
[349753806,1737413466622,-500.0,0.00022328,3]
[349753807,1737413466634,-191.4726222,0.00022328,3]
[349753808,1737413466645,-500.0,0.00022328,3]
[349753809,1737413466657,-500.0,0.00022328,3]
[349753810,1737413466668,-500.0,0.00022328,3]
[349753812,1737413466680,-1671.65,0.00022328,3]
[349753814,1737413466691,-500.0,0.00022328,3]
[349753816,1737413466704,-500.0,0.00022328,3]
[349753818,1737413466715,-500.0,0.00022328,3]
[349753820,1737413466726,-809.08,0.00022328,3]
[349753823,1737413466738,-500.0,0.00022328,3]
[349753825,1737413466750,-500.0,0.00022328,3]
[349753827,1737413466761,-500.0,0.00022328,3]
[349753829,1737413466773,-500.0,0.00022328,3]
[349753831,1737413466784,-848.51,0.00022328,3]
[349753833,1737413466795,-500.0,0.00022328,3]
[349753836,1737413466807,-500.0,0.00022328,3]
[349753838,1737413466819,-1394.82,0.00022328,3]
[349753840,1737413466831,-2080.74,0.00022328,3]
[349753843,1737413466842,-540.2,0.00022328,3]
[349753845,1737413466853,-500.0,0.00022328,3]
[349753847,1737413466864,-500.0,0.00022328,3]
[349753849,1737413466875,-500.0,0.00022328,3]
[349753852,1737413466887,-500.0,0.00022328,3]
[349753854,1737413466899,-9034.91424494,0.00022328,3]
[349753899,1737413467339,-426.26575506,0.00022328,3]
[349753902,1737413467348,-73.73424494,0.00022328,3]
[349755657,1737413496760,547.22437949,0.00024,120]
[349755659,1737413817071,2000.0,0.0002,2]
[349755660,1737413847601,407.11016158,0.0002,2]
[349755661,1737413899883,500.0,0.00019494,2]
[349755662,1737413921017,500.0,0.00018519,2]
[349755663,1737414044900,24900.0,0.00019896,2]
[349755666,1737414306333,165.042143,0.00013973,2]
[349755667,1737414394128,-452.65685669,0.00020228,2]
[349755668,1737414419503,171.413223,0.00019622,2]
[349755669,1737414494196,987.06812431,0.000189,2]
[349755680,1737414632216,-500.0,0.00020432,2]
[349755681,1737414632226,-500.0,0.0002052,2]
[349755682,1737414632235,-437.887582,0.00020754,2]
[349755683,1737414632244,-183.077,0.00020895,2]
[349755684,1737414632254,-300.0,0.00020895,2]
[349755685,1737414632263,-19849.28824344,0.00020896,2]
[349755686,1737414632275,-10646.25527616,0.00020896,2]
[349755687,1737414632284,-2967.0,0.00021037,2]
[349755688,1737414632293,-514.796,0.0002121,2]
[349755689,1737414632303,-2062.0,0.00021223,2]
[349755690,1737414632312,-536.0,0.00021223,2]
[349755691,1737414632322,-2307.0,0.00021223,2]
[349755692,1737414632331,-395.0,0.00021256,2]
[349755693,1737414632340,-500.0,0.00021546,2]
[349755694,1737414632351,-182.32714222,0.00021817,2]
[349755695,1737414632360,-1323.54754137,0.000219,3]
[349755696,1737414632369,-500.0,0.00021916,2]
[349755697,1737414632383,-500.0,0.00021916,2]
[349755698,1737414632392,-152.5,0.00021916,2]
[349755699,1737414632402,-500.0,0.00021916,2]
[349755700,1737414632411,-500.0,0.00021916,2]
[349755701,1737414632421,-500.0,0.00021916,2]
[349755702,1737414632430,-500.0,0.00021916,2]
[349755703,1737414632439,-500.0,0.00021916,2]
[349755704,1737414632449,-500.0,0.00021916,2]
[349755705,1737414632458,-500.0,0.00021916,2]
[349755706,1737414632468,-500.0,0.00021916,2]
[349755707,1737414632477,-443.6166946,0.00021916,2]
[349755708,1737414632486,-500.0,0.00021916,2]
[349755709,1737414632496,-500.0,0.00021916,2]
[349755710,1737414632505,-500.0,0.00021916,2]
[349755711,1737414632515,-488.49925696,0.00021916,2]
[349755712,1737414632528,-500.0,0.00021916,2]
[349755713,1737414632537,-500.0,0.00021916,2]
[349755714,1737414632547,-500.0,0.00021916,2]
[349755715,1737414632557,-500.0,0.00021916,2]
[349755716,1737414632567,-500.0,0.00021916,2]
[349755717,1737414632576,-500.0,0.00021916,2]
[349755718,1737414632585,-500.0,0.00021916,2]
[349755719,1737414632594,-259.1971788,0.00021916,2]
[349755720,1737414632605,-500.0,0.00021916,2]
[349755721,1737414632615,-500.0,0.00021916,2]
[349755722,1737414632624,-500.0,0.00021916,2]
[349755723,1737414632634,-500.0,0.00021916,2]
[349755724,1737414632643,-549.40739913,0.00021916,2]
[349755725,1737414632654,-500.0,0.00021916,2]
[349755726,1737414632664,-500.0,0.00021916,2]
[349755727,1737414632673,-500.0,0.00021916,2]
[349755728,1737414632683,-500.0,0.00021916,2]
[349755729,1737414632692,-249.47699228,0.00021916,2]
[349755766,1737414637995,-250.52300772,0.00021916,2]
[349755768,1737414638005,-500.0,0.00021916,2]
[349755770,1737414638015,-500.0,0.00021916,2]
[349755772,1737414638025,-500.0,0.00021916,2]
[349755774,1737414638034,-206.29931045,0.00021917,3]
[349755777,1737414638044,-500.0,0.00021917,3]
[349755779,1737414638054,-585.79436646,0.00021917,3]
[349755781,1737414638063,-500.0,0.00021917,3]
[349755783,1737414638073,-500.0,0.00021917,3]
[349755785,1737414638082,-500.0,0.00021917,3]
[349755787,1737414638092,-500.0,0.00021917,3]
[349755789,1737414638101,-544.8231275,0.00021917,3]
[349755791,1737414638114,-502.07614746,0.00021917,3]
[349755793,1737414638123,-500.0,0.00021917,3]
[349755794,1737414638134,-500.0,0.00021917,3]
[349755796,1737414638144,-498.51273859,0.00021917,3]
[349755799,1737414638154,-500.0,0.00021917,3]
[349755801,1737414638164,-454.0628726,0.00021917,3]
[349755803,1737414638174,-505.62603742,0.00021917,3]
[349755805,1737414638184,-500.0,0.00021917,3]
[349755807,1737414638194,-513.67956417,0.00021917,3]
[349755809,1737414638203,-509.16917601,0.00021917,3]
[349755811,1737414638213,-500.0,0.00021917,3]
[349755813,1737414638223,-500.0,0.00021917,3]
[349755815,1737414638232,-500.0,0.00021917,3]
[349755817,1737414638242,-538.63,0.00021917,3]
[349755818,1737414638251,-500.0,0.00021917,3]
[349755821,1737414638261,-500.0,0.00021917,3]
[349755823,1737414638271,-504.77894629,0.00021917,3]
[349755825,1737414638280,-500.0,0.00021917,3]
[349755827,1737414638290,-500.0,0.00021917,3]
[349755829,1737414638299,-500.0,0.00021917,3]
[349755831,1737414638309,-500.0,0.00021917,3]
[349755833,1737414638318,-500.0,0.00021917,3]
[349755835,1737414638327,-500.0,0.00021917,3]
[349755837,1737414638337,-236.81719148,0.00021917,3]
[349755839,1737414638351,-263.18280852,0.00021917,3]
[349755841,1737414638363,-500.0,0.00021917,3]
[349755843,1737414638373,-591.58,0.00021917,3]
[349755845,1737414638382,-500.0,0.00021917,3]
[349755847,1737414638392,-312.47697427,0.00021917,3]
[349755849,1737414638401,-166.5417952,0.00021917,3]
[349756029,1737414640310,-333.4582048,0.00021917,3]
[349756031,1737414640320,-82.5617952,0.00021917,3]
[349756039,1737414640381,-429.27859785,0.00021917,3]
[349756041,1737414640391,-500.0,0.00021917,3]
[349756043,1737414640400,-500.0,0.00021917,3]
[349756045,1737414640410,-356.25596257,0.00021917,3]
[349756047,1737414640420,-500.0,0.00021917,3]
[349756049,1737414640429,-500.0,0.00021917,3]
[349756051,1737414640438,-500.0,0.00021917,3]
[349756053,1737414640448,-500.0,0.00021917,3]
[349756055,1737414640457,-500.0,0.00021917,3]
[349756057,1737414640467,-500.0,0.00021917,3]
[349756059,1737414640476,-266.75211091,0.00021917,3]
[349756061,1737414640485,-500.0,0.00021917,3]
[349756063,1737414640495,-500.0,0.00021917,3]
[349756065,1737414640505,-500.0,0.00021917,3]
[349756067,1737414640516,-500.0,0.00021917,3]
[349756069,1737414640527,-500.0,0.00021917,3]
[349756071,1737414640536,-500.0,0.00021917,3]
[349756073,1737414640545,-502.71498313,0.00021917,3]
[349756075,1737414640555,-500.0,0.00021917,3]
[349756077,1737414640566,-500.0,0.00021917,3]
[349756079,1737414640576,-500.0,0.00021917,3]
[349756081,1737414640585,-500.0,0.00021917,3]
[349756083,1737414640595,-500.0,0.00021917,3]
[349756085,1737414640605,-500.0,0.00021917,3]
[349756087,1737414640619,-500.0,0.00021917,3]
[349756089,1737414640629,-500.0,0.00021917,3]
[349756091,1737414640641,-500.0,0.00021917,3]
[349756093,1737414640651,-500.0,0.00021917,3]
[349756095,1737414640660,-500.0,0.00021917,3]
[349756097,1737414640670,-781.31,0.00021917,3]
[349756099,1737414640679,-500.0,0.00021917,3]
[349756101,1737414640689,-500.0,0.00021917,3]
[349756103,1737414640698,-500.0,0.00021917,3]
[349756105,1737414640708,-500.0,0.00021917,3]
[349756107,1737414640718,-500.0,0.00021917,3]
[349756109,1737414640727,-500.0,0.00021917,3]
[349756111,1737414640736,-500.0,0.00021917,3]
[349756113,1737414640746,-279.22681415,0.00021917,3]
[349756115,1737414640756,-500.0,0.00021917,3]
[349756117,1737414640765,-288.44,0.00021917,3]
[349756136,1737414640903,-500.0,0.00021917,3]
[349756139,1737414640948,-500.0,0.00021917,3]
[349756141,1737414640958,-200.49962142,0.00021917,3]
[349756143,1737414640968,-500.0,0.00021917,3]
[349756145,1737414640977,-500.0,0.00021917,3]
[349756147,1737414640987,-500.0,0.00021917,3]
[349756149,1737414640996,-500.0,0.00021917,3]
[349756151,1737414641006,-594.77,0.00021917,3]
[349756153,1737414641015,-500.0,0.00021917,3]
[349756155,1737414641025,-500.0,0.00021917,3]
[349756157,1737414641034,-500.0,0.00021917,3]
[349756159,1737414641044,-500.0,0.00021917,3]
[349756161,1737414641053,-500.0,0.00021917,3]
[349756163,1737414641063,-523.4699008,0.00021917,3]
[349756165,1737414641072,-500.0,0.00021917,3]
[349756167,1737414641081,-500.0,0.00021917,3]
[349756169,1737414641091,-500.0,0.00021917,3]
[349756172,1737414641100,-500.0,0.00021917,3]
[349756174,1737414641112,-500.0,0.00021917,3]
[349756175,1737414641121,-500.0,0.00021917,3]
[349756178,1737414641130,-531.09373918,0.00021917,3]
[349756180,1737414641141,-500.0,0.00021917,3]
[349756182,1737414641151,-500.0,0.00021917,3]
[349756184,1737414641160,-500.0,0.00021917,3]
[349756186,1737414641169,-500.0,0.00021917,3]
[349756188,1737414641179,-500.0,0.00021917,3]
[349756190,1737414641188,-963.08,0.00021917,3]
[349756192,1737414641197,-1013.38,0.00021917,3]
[349756194,1737414641206,-507.3642845,0.00021917,3]
[349756196,1737414641215,-500.0,0.00021917,3]
[349756198,1737414641225,-500.0,0.00021917,3]
[349756200,1737414641235,-500.0,0.00021917,3]
[349756202,1737414641244,-500.0,0.00021917,3]
[349756204,1737414641253,-500.0,0.00021917,3]
[349756206,1737414641263,-200.0,0.00021917,3]
[349756208,1737414641272,-500.0,0.00021917,3]
[349756210,1737414641281,-423.14495844,0.00021917,3]
[349756212,1737414641291,-500.0,0.00021917,3]